Cogmind - Beta 10.2 @@@ ROGUE MODE // 2021.07.01 @ 15:29:37 Player: HabNab Result: Destroyed by P-60 Hacker with Shock Rifle Performance ------------- Evolutions (3) 1500 Regions Visited (5) 1000 Robots Destroyed (54) 270 Value Destroyed (1353) 1353 Prototype IDs (8) 160 Alien Tech Used (0) 0 Bonus (0) 0 TOTAL SCORE: 4283 Bonus ------- None Cogmind --------- Core Integrity 0/700 Matter 300/300 Energy 100/100 System Corruption 14% Temperature Cool (0) Movement Core (550) Ox10 Location -7/Factory Parts ------- > --- POWER (1) -------- (None) > --- PROPULSION (2) --- (None) > --- UTILITY (7) ------ High-capacity Storage Unit Advanced Signal Interpreter > --- WEAPON (3) ------- (None) > --- INVENTORY (12) --- Heavy Ion Engine Cooled Ion Engine Light Treads Light Treads Structural Scanner System Shield Heavy Particle Gun Improved EM Pulse Cannon Improved EM Pulse Cannon Ion Cannon Heavy Assault Rifle Peak State ------------ > --- POWER ------------ Nuclear Core > --- PROPULSION ------- Light Treads Armored Treads > --- UTILITY ---------- Improved Heat Sink Disposable Heat Sink High-capacity Storage Unit Sensor Array Advanced Signal Interpreter Hardened Medium Armor Plating Hacking Suite > --- WEAPON ----------- Heavy Particle Gun Improved EM Pulse Cannon Improved EM Pulse Cannon > --- INVENTORY -------- Heavy Ion Engine Cooled Ion Engine Light Nuclear Core Light Treads Structural Scanner System Shield Improved EM Shotgun Heavy Particle Gun Improved EM Pulse Cannon Improved EM Pulse Cannon Ion Cannon Heavy Assault Rifle [Rating: 38] Favorites ----------- Power Nuclear Core Engine Heavy Ion Engine Power Core Nuclear Core Propulsion Light Treads Treads Light Treads Utility High-capacity Storage Unit Device Disposable Heat Sink Storage High-capacity Storage Unit Processor Advanced Signal Interpreter Hackware Hacking Suite Protection Hardened Medium Armor Plating Weapon Improved EM Pulse Cannon Energy Gun Improved EM Shotgun Energy Cannon Improved EM Pulse Cannon Ballistic Gun Heavy Assault Rifle Launcher Grenade Launcher Build | -11 -10 -10 -9 -8 -7 ------- Run | Scr Mat Min Mat Mat Fac Slots Evolved 6 | . . . 2 2 2 Power . | . . . . . . Propulsion . | . . . . . . Utility 5 | . . . 1 2 2 Weapon 1 | . . . 1 . . Parts Attached 37 | 7 3 . 9 11 7 Power 4 | 1 . . 1 1 1 Engine 2 | 1 . . 1 . . Core 2 | . . . . 1 1 Reactor . | . . . . . . Propulsion 5 | 2 . . 1 2 . Treads 5 | 2 . . 1 2 . Leg . | . . . . . . Wheel . | . . . . . . Hover . | . . . . . . Flight . | . . . . . . Utility 12 | 1 2 . 2 4 3 Device 6 | . . . 2 3 1 Storage 3 | 1 2 . . . . Processor 1 | . . . . . 1 Hackware 1 | . . . . 1 . Protection 1 | . . . . . 1 Artifact . | . . . . . . Weapon 16 | 3 1 . 5 4 3 Energy Gun 11 | 3 . . 4 3 1 Energy Cannon 2 | . . . . . 2 Ballistic Gun 2 | . . . 1 1 . Ballistic Cannon . | . . . . . . Launcher 1 | . 1 . . . . Special Weapon . | . . . . . . Impact Weapon . | . . . . . . Slashing Weapon . | . . . . . . Piercing Weapon . | . . . . . . Special Melee Weapon . | . . . . . . Unidentified Prototypes . | . . . . . . Parts Lost 15 | . . . 2 . 13 Power 2 | . . . . . 2 Propulsion 2 | . . . . . 2 Utility 5 | . . . . . 5 Weapon 6 | . . . 2 . 4 Highest Loss Streak 11 | . . . 2 . 11 Average Slot Usage (%) 95 | . 85 85 98 99 94 Engine 4 | . 14 14 11 2 . Core 4 | . . . . 6 6 Treads 18 | . 28 28 22 18 14 Device 20 | . . . 20 27 21 Storage 9 | . 14 14 11 9 7 Processor 3 | . . . . . 7 Hackware 4 | . . . . 9 6 Protection 2 | . . . . . 6 Energy Gun 15 | . 22 14 22 20 7 Energy Cannon 5 | . . . . . 12 Ballistic Gun 3 | . . . 5 6 . Launcher 2 | . 5 14 5 . . Naked Turns . | . . . . . . Heaviest Build 67 | 11 40 40 51 52 67 Greatest Support 40 | 40 40 40 40 40 40 Greatest Overweight (x) 12 | . . . 1 1 12 Average Overweight (x) . | . . . 1 1 1 Largest Inventory Capacity 18 | 6 18 12 12 12 12 Average Capacity 11 | 5 9 12 12 12 12 Most Carried 12 | 2 5 5 12 12 12 Average Carried 10 | . 3 5 9 11 11 Final Capacity 12 | 6 12 12 12 12 12 Final Carried 12 | 2 5 5 12 12 11 Class Distribution -------------------- 46% | Scavenger-Skirmisher 26% | Skirmisher 23% | Mutant 3% | Scavenger-Mutant Dominant Class ---------------- Mutant | -10/Materials Mutant | -10/Mines Skirmisher | -9/Materials Skirmisher | -8/Materials Scavenger-Skirmisher | -7/Factory Resources | -11 -10 -10 -9 -8 -7 ----------- Run | Scr Mat Min Mat Mat Fac Matter Collected 798 | 188 9 . 333 191 77 Remotely . | . . . . . . Salvage Created 1869 | . 24 . 678 529 638 Parts 101 | . 6 . 47 20 28 Haulers Intercepted 4 | . . . 3 1 . Recyclers Shooed 1 | . . . 1 . . Parts Field Recycled . | . . . . . . Retrieved Matter . | . . . . . . Parts Self-Destructed . | . . . . . . Prevented . | . . . . . . Kills | -11 -10 -10 -9 -8 -7 ------- Run | Scr Mat Min Mat Mat Fac Combat Hostiles Destroyed 36 | . 3 . 13 10 10 Guns 26 | . . . 9 9 8 Cannons 2 | . . . . . 2 AOE 7 | . 3 . 4 . . Classes Destroyed 10 | . 2 . 6 . 2 Worker 1 | . 1 . . . . Builder 4 | . . . 2 . 2 Hauler 4 | . . . 3 1 . Recycler 3 | . . . . . 3 Operator 2 | . . . 1 1 . Watcher 4 | . . . 3 1 . Swarmer 14 | . 3 . 3 4 4 Grunt 17 | . . . 8 5 4 Duelist 1 | . . . . . 1 Sentry 4 | . . . 2 1 1 Best Kill Streak 8 | . 4 . 7 4 8 Combat Bots Only 4 | . 3 . 3 4 4 Max Kills in Single Turn 4 | . 2 . 2 1 4 Gunslinging . | . . . . . . Exploded 2 | . 1 . 2 . . Melee . | . . . . . . Uniques/NPCs Destroyed . | . . . . . . Combat | -11 -10 -10 -9 -8 -7 -------- Run | Scr Mat Min Mat Mat Fac Damage Taken 3056 | . 43 . 507 455 2051 Core 823 | . . . 78 43 702 Absorbed by Shields . | . . . . . . Core Remaining (%) 93 | 100 . 100 80 92 . Volleys Fired 110 | . 4 . 44 30 32 Largest 3 | . 1 . 3 3 3 Hottest 193 | . 40 . 120 153 193 Shots Fired 254 | . 4 . 110 90 50 Gun 225 | . 1 . 104 90 30 Cannon 20 | . . . . . 20 Launcher 9 | . 3 . 6 . . Special . | . . . . . . Kinetic 47 | . . . 20 27 . Thermal 94 | . . . 32 33 29 Explosive 9 | . 3 . 6 . . Electromagnetic 104 | . 1 . 52 30 21 Robot Hit Streak 12 | . 3 . 11 12 10 Robot Miss Streak 3 | . . . 3 3 1 Penetration Max . | . . . . . . Secondary Targets 2 | . . . 1 1 . Max Gunslinging Chain 1 | . . . 1 1 . Shots Hit Robots 169 | . 3 . 69 61 36 Core Hits 93 | . 5 . 42 24 22 Critical Hits . | . . . . . . Critical Kills . | . . . . . . Critical Parts Destroyed . | . . . . . . Melee Attacks . | . . . . . . Impact . | . . . . . . Slashing . | . . . . . . Piercing . | . . . . . . Sneak Attacks . | . . . . . . Combat Hostiles . | . . . . . . Follow-up Attacks . | . . . . . . Damage Inflicted 3577 | . 218 . 1550 823 986 Guns 2313 | . 12 . 992 823 486 Cannons 229 | . . . . . 229 Explosions 1031 | . 206 . 558 . 267 Melee . | . . . . . . Ramming 4 | . . . . . 4 Kinetic 262 | . . . 100 162 . Thermal 1509 | . . . 386 394 729 Explosive 693 | . 206 . 487 . . Electromagnetic 1109 | . 12 . 577 267 253 Impact . | . . . . . . Slashing . | . . . . . . Piercing . | . . . . . . Highest Corruption 14 | . . . . . 14 Average Corruption 7 | . . . . . 7 Corruption Purged . | . . . . . . Effects 2 | . . . . . 2 Message Errors 1 | . . . . . 1 Matter Fused 1 | . . . . . 1 Overload Shots . | . . . . . . Overflow Damage 102 | . . . 18 . 84 Projectiles . | . . . . . . Explosions 102 | . . . 18 . 84 Melee . | . . . . . . Knockbacks . | . . . . . . Impact . | . . . . . . Kinetic . | . . . . . . Secondary . | . . . . . . Self-Inflicted Damage 57 | . . . . . 57 Shots 1 | . . . . . 1 Rammed 6 | . . . . . 6 Targets Rammed 6 | . . . . . 6 Kicked . | . . . . . . Crushed . | . . . . . . Highest Temperature 199 | . . . 199 131 177 Average Temperature 70 | . . . 79 47 69 Received Heat Transfer 579 | . . . 237 171 171 Siege Activations . | . . . . . . Robots Corrupted . | . . . . . . Combat Hostiles . | . . . . . . Parts Fried . | . . . . . . Impact Corruptions . | . . . . . . Robots Melted 1 | . . . . 1 . Combat Hostiles 1 | . . . . 1 . Parts Melted 1 | . . . . . 1 Heat Transferred 2930 | . . . 978 814 1138 Parts Sabotaged . | . . . . . . Parts Stolen . | . . . . . . Parts Stripped . | . . . . . . Power Chain Reactions 2 | . . . 2 . . Missiles Intercepted . | . . . . . . Alert | -11 -10 -10 -9 -8 -7 ------- Run | Scr Mat Min Mat Mat Fac Peak Influence 359 | . 91 35 295 359 201 Initial 124 | . . 35 13 124 122 Average 124 | . 37 35 140 239 83 Maximum Alert Level 1 | . . . 1 1 1 Low Security (%) 78 | 100 100 100 70 34 99 Level 1 21 | . . . 29 65 . Level 2 . | . . . . . . Level 3 . | . . . . . . Level 4 . | . . . . . . Level 5 . | . . . . . . High Security . | . . . . . . Max Security . | . . . . . . Squads Dispatched 6 | . . . 1 . 5 Investigation 1 | . . . 1 . . Extermination 2 | . . . . . 2 Reinforcement 1 | . . . . . 1 Assault . | . . . . . . Garrison 2 | . . . . . 2 Intercept . | . . . . . . Construction Impeded . | . . . . . . Haulers Reinforced . | . . . . . . Stealth | -11 -10 -10 -9 -8 -7 --------- Run | Scr Mat Min Mat Mat Fac Distress Signals 4 | . . . 2 2 . Communications Jammed . | . . . . . . Distress Signals . | . . . . . . Times Spotted 57 | . 3 . 24 16 14 Peak Tracking Total 4 | . 3 . 4 4 4 Tactical Retreats 5 | . . . 2 1 2 Traps | -11 -10 -10 -9 -8 -7 ------- Run | Scr Mat Min Mat Mat Fac Traps Triggered . | . . . . . . Indirectly . | . . . . . . Trap Hack Attempts . | . . . . . . Triggered . | . . . . . . Disarmed . | . . . . . . Reprogrammed . | . . . . . . Reused . | . . . . . . Traps Extracted . | . . . . . . Installed . | . . . . . . Triggered . | . . . . . . Machines | -11 -10 -10 -9 -8 -7 ---------- Run | Scr Mat Min Mat Mat Fac Machines Disabled 3 | . . . . . 3 Max in Single Turn 3 | . . . . . 3 Machines Sabotaged . | . . . . . . Garrisons Compromised . | . . . . . . Overloaded Fab Kills . | . . . . . . Fab Network Shutdowns . | . . . . . . Hacking | -11 -10 -10 -9 -8 -7 --------- Run | Scr Mat Min Mat Mat Fac Machines Accessed 12 | . 2 . 6 3 1 Terminals 9 | . 2 . 4 2 1 Fabricators . | . . . . . . Repair Stations 1 | . . . 1 . . Recycling Units . | . . . . . . Scanalyzers 2 | . . . 1 1 . Garrison Access . | . . . . . . Total Hacks 33 | . 5 . 17 9 2 Successful 21 | . 3 . 11 6 1 Failed 12 | . 2 . 6 3 1 Catastrophic 3 | . . . 2 1 . Database Lockouts . | . . . . . . Manual 3 | . 1 . 1 1 . Terminals 26 | . 5 . 12 7 2 Fabricators . | . . . . . . Repair Stations 2 | . . . 2 . . Recycling Units . | . . . . . . Scanalyzers 5 | . . . 3 2 . Garrison Access . | . . . . . . Terminal Hacks 15 | . 2 . 8 4 1 Record 5 | . . . 5 . . Prototype ID Bank 2 | . 1 . . 1 . Branch Access Points 1 | . . . . 1 . Emergency Access Points 1 | . . . . 1 . Locate Traps 1 | . . . 1 . . Recall Extermination 1 | . . . . . 1 Hauler Manifests 1 | . . . 1 . . Registered Components 1 | . 1 . . . . Zone Layout 2 | . . . 1 1 . Fabricator Hacks . | . . . . . . Repair Station Hacks 1 | . . . 1 . . Scan Component 1 | . . . 1 . . Recycling Unit Hacks . | . . . . . . Scanalyzer 4 | . . . 2 2 . Insert Component 4 | . . . 2 2 . Garrison Access Hacks . | . . . . . . Unauthorized Hacks 1 | . 1 . . . . Terminals 1 | . 1 . . . . Botnet 1 | . 1 . . . . Fabricators . | . . . . . . Repair Stations . | . . . . . . Recycling Units . | . . . . . . Scanalyzers . | . . . . . . Garrison Access . | . . . . . . Data Cores Recovered 2 | . . . 1 1 . Used . | . . . . . . Hacking Detections 10 | . 2 . 5 2 1 Full Trace Events 1 | . . . 1 . . Feedback Events . | . . . . . . Feedback Blocked . | . . . . . . Robot Schematics Acquired . | . . . . . . Robots Built . | . . . . . . Matter . | . . . . . . Time . | . . . . . . Total Robot Build Rating . | . . . . . . Part Schematics Acquired . | . . . . . . Parts Built . | . . . . . . Matter . | . . . . . . Time . | . . . . . . Total Part Build Rating . | . . . . . . Parts Repaired . | . . . . . . Time . | . . . . . . Parts Recycled . | . . . . . . Recycled Matter . | . . . . . . Retrieved Matter . | . . . . . . Retrieved Components . | . . . . . . Parts Scanalyzed . | . . . . . . Part Schematics Acquired . | . . . . . . Parts Damaged . | . . . . . . Bothacking | -11 -10 -10 -9 -8 -7 ------------ Run | Scr Mat Min Mat Mat Fac Used RIF Installer . | . . . . . . Robots Hacked . | . . . . . . Non-combat . | . . . . . . Combat . | . . . . . . Robot Hacks Applied . | . . . . . . Relay Couplers Released . | . . . . . . Robots Rewired . | . . . . . . Allies Hacked . | . . . . . . Hacks Repelled . | . . . . . . Allies | -11 -10 -10 -9 -8 -7 -------- Run | Scr Mat Min Mat Mat Fac Total Allies . | . . . . . . Largest Group . | . . . . . . Highest-Rated Group . | . . . . . . Highest-Rated Ally . | . . . . . . Total Orders . | . . . . . . Ally Attacks . | . . . . . . Total Damage . | . . . . . . Kills . | . . . . . . Allies Corrupted . | . . . . . . Allies Melted . | . . . . . . Intel | -11 -10 -10 -9 -8 -7 ------- Run | Scr Mat Min Mat Mat Fac Robot Analysis Total . | . . . . . . Derelict Logs Recovered 1 | . . 1 . . . Drone Launches . | . . . . . . Drone Recoveries . | . . . . . . Exploration | -11 -10 -10 -9 -8 -7 ------------- Run | Scr Mat Min Mat Mat Fac Turns Passed 2808 | 65 185 87 670 606 1195 Spaces Moved 1008 | 35 106 55 276 252 284 Core 4 | 2 . . . . 2 Treads 1004 | 33 106 55 276 252 282 Legs . | . . . . . . Wheels . | . . . . . . Hover . | . . . . . . Flight . | . . . . . . Fastest Speed 50 | 50 160 160 180 180 185 Average Speed 178 | 153 160 160 180 182 187 Slowest Speed 650 | 160 160 160 180 185 650 Overloaded Moves . | . . . . . . Propulsion Burnouts . | . . . . . . Robots Hopped . | . . . . . . Cave-ins Triggered . | . . . . . . Exploration Rate (%) 19 | 3 22 24 30 30 9 Regions Visited 5 Branch Regions 1 Pre-discovered Areas . | . . . . . . Known Exits Taken 1 | . . . 1 . . Unknown Exits Taken 4 | 1 1 1 . 1 . Scrap Searched . | . . . . . . Spaces Dug . | . . . . . . Terrain Destroyed 90 | . 17 . 33 . 40 Melee . | . . . . . . Projectile . | . . . . . . AOE 90 | . 17 . 33 . 40 Terrain Rammed . | . . . . . . Walls Destroyed . | . . . . . . Machines Disabled . | . . . . . . Actions | -11 -10 -10 -9 -8 -7 --------- Run | Scr Mat Min Mat Mat Fac Total 1784 | 43 117 54 362 332 876 Wait 560 | . . . 1 17 542 Move 1003 | 34 105 54 275 251 284 Hop . | . . . . . . Pick Up 37 | 1 3 . 20 10 3 Fast Attach 19 | 7 2 . 4 4 2 Attach 9 | . . . 3 2 4 Detach 1 | 1 . . . . . Swap 9 | . 1 . 2 5 1 Drop 30 | . 2 . 13 13 2 Fire 110 | . 4 . 44 30 32 Melee . | . . . . . . Ram 6 | . . . . . 6 Kick . | . . . . . . Crush . | . . . . . . Escape Stasis . | . . . . . . Rewire . | . . . . . . Trap . | . . . . . . Miscellaneous . | . . . . . . Route ------- -11/Scrapyard -10/Materials -10/Mines -9/Materials (discovered 2 exits: *Mat / [*Min]) -8/Materials -7/Factory History --------- Turn | Location | Event 4 | -11/Scrapyard | Discovered new exit (range 16) 66 | -11/Scrapyard | Entered Materials 208 | -10/Materials | Discovered new exit (range 3) 251 | -10/Materials | Entered Mines 269 | -10/Mines | Learned location of 1 exit from Materials 300 | -10/Mines | Build established: Mutant 322 | -10/Mines | Discovered new exit (range 9) 338 | -10/Mines | Entered Materials 338 | -9/Materials | Evolved 2 slots: Utility x1, Weapon x1 339 | -9/Materials | Identified exit to Materials 702 | -9/Materials | Discovered new exit (range 9) 966 | -9/Materials | Build established: Skirmisher 1008 | -9/Materials | Entered another Materials area 1008 | -8/Materials | Evolved 2 slots: Utility x2 1557 | -8/Materials | Discovered new exit (range 16) 1614 | -8/Materials | Entered Factory 1614 | -7/Factory | Evolved 2 slots: Utility x2 1909 | -7/Factory | Build established: Scavenger-Skirmisher 2643 | -7/Factory | Garrison activated, responded to threat 2774 | -7/Factory | System corruption reached 10% 2777 | -7/Factory | Core integrity fell below 50% 2791 | -7/Factory | Core integrity fell below 20% 2804 | -7/Factory | Lost 11 parts (1p2n4u4w) 2809 | -7/Factory | Destroyed by P-60 Hacker with Shock Rifle Last Messages --------------- 02773_ K-01 Serf collects debris. 02775_ Penetrated by Slug. 02776_ K-01 Serf collects debris. 02778_ Penetrated by Slug. 02778_ R-06 Scavenger collects Lgt. Ion Engine. 02779_ Slammed into P-60 Hacker. 02779_ K-01 Serf collects debris. 02781_ Penetrated by Slug. 02782_ R-06 Scavenger collects Terrain Scanner. 02783_ K-01 Serf collects debris. 02784_ Penetrated by Slug. 02787_ K-01 Serf collects debris. 02787_ Penetrated by Slug. 02790_ Slammed into K-01 Serf. 02790_ Penetrated by Slug. 02793_ R-06 Scavenger collects Lgt. Ion Engine. 02794_ Penetrated by Slug. 02795_ Slammed into P-60 Hacker. 02806_ H-55 Commando misfires. 02809_ K-01 Serf collects debris. Map ----- +----------------------------------------------------+ | " ## #??????? | | " [ ## #??????? | | " #? #??????? | | "= #??? ????????? | | "[%= #????? ??????????? | | ""* #################+####????????? | | ! =%*% #????????? | | = #????????? | | #????????? | | #????????? | | #????????? | | #######+############+############ #????????? | | # #???? #?????????# #????????? | | %+ #?? """" #?????????# #????????? | | ### ## """" #?????????# #????????? | | ??# ## """" #?????????# #????????? | | ??# ## """" #?????????# #????????? | | ??# ## """" ########### #????????? | | ??# ##?????? # # #????????? | | ??# #??????? # # #????????? | | ??# #??????? # # #????????? | | ??# #??????? # + #????????? | | ??# #??????? # =! % # #????????? | | ??# #????????#%%%!%% k # #????????? | | ??##############????????#p!!=%= # #????????? | | ????????????????????????#@!%%%[ # #????????? | | ????????????????????????####h###### ########## | | ???????????????????????????# #????# | | ???????????????????????????#%#????# | | ???????????????????????????#%#????# T | | ???????????????????????????#!#????# """""" | | ???????????????############# #????# """"?? | | ??????????????? # #????# """??? | | ???????????????? # ###### """??? | | ????????????????? [ # ??? | | ??????????????????"" """ # ?? | | ?????????????????""" """ + ?? | | ??????????????# """ """ # * | | ??????????????# # ? | | ??????????????# """ """ ##### #### #" "#######? | | ?????????????????""" """ #???# #??? #?G"???????? | | ??????????????# """ """ #???# #??? ???????????? | | ??????????????# % #??? ???????????????? | | ??????????????# #??? ???????????????? | | ??????????????##############??? ???????????????? | | ??????????????????????????????? ???????????????? | | ?????????????????????????????? ??????????????? | | ??????????????????????????????## ##??????????????? | | ???????????????????????????????? ????????????????? | | ???????????????????????????????? ????????????????? | +----------------------------------------------------+ Best States ------------- Heat Dissipation 50 Coolant Potential 50 Energy Generation 14 Energy Capacity 280 Matter Stores 300 Matter Capacity 300 Sight Range 16 Robot Scan Range 10 Terrain Scan Density 10 Armor Coverage 225 Evasion (%) 40 Recoil Reduction 2 Offensive Hacking 10 Item Schematics ----------------- None Robot Schematics ------------------ None Fabricated ------------ Nothing Alien Tech Used ----------------- None Achievements -------------- GoHome() It's Just You Challenges ------------ None Game ------ Seed GravityGhostDriver Manual? 0 Play Time 00:30:34 Cumulative 9.0 hours Start 2021.07.01 @ 14:49:51 End 2021.07.01 @ 15:29:37 Sessions 1 Manual Loads 0 Difficulty Rogue Special Mode None Game No. 12 Rogue 12 Adventurer 0 Explorer 0 Win Type - Total 0 Types 0/0/0/0/0/0/0/0/0 Lore% 24 Gallery% 23 Achievement% 21 Wizard Run 0 Options --------- ASCII 0 Keyboard 0 Movement Mouse Keybinds 0 Fullscreen 2 Font 18/SmallcapsGlow Map View 76x50 Tactical HUD 1 Map Filters NONE Filters NONE Steam 1 RUN: 0355cdc9-19f8-48b2-8e85-6a26c6cb4658